Workbook

Sheet Sheet1
B1: Derivative of y = sin (ex)
B3: This DIGMath unit explores
C4: the derivative function of
D5: y = sin (ex)
B6: on any interval from x = a to x = b.
A8: The function in terms of x: f'(x) = | F8: sin(exp(x))
A11: Now enter the interval for x:
C12: xMin = | D12: -3.14
C13: xMax = | D13: 3.14
A16: Click each item below for suggestions and investigations
C17: Item 1 | I17: Trace along all the curves: | M17: 222 | P17: x = | Q17: =M17/50-3.14 -> 1.3 | R17: y = | S17: =Sheet2!N4 -> -0.46
C18: Item 2
C19: Item 3
C20: Item 4
C21: Item 5
A25: To access/download all the DIGMath Apps for Calculus | R25: y' = | S25: =Sheet2!N10 -> -3.21
A26: Click this link: | C26: DIGMath for Calculus
A28: Created by: Sheldon P. Gordon
A29: Farmingdale State College
A30: Development of this module was supported by the
A31: NSF's Division of Undergraduate Education
A32: under grants DUE-0310123 and DUE-0442160.
R62: Error = | S62: =Sheet2!N16 -> -0.000014

Sheet Sheet2
C1: x | D1: y = f(x) | E1: x+.00001 | F1: f(x+0.00001) | G1: AppDeriv | H1: e^x | J1: Actual | K1: Diff | M1: verticals
D2: =Sheet1!#REF! ->  | J2: Deriv
C3: =Sheet1!D12 -> -3.14 | D3: =SIN(EXP(x)) -> 0.04326928483 | E3: =x+0.00001 -> -3.13999 | F3: =SIN(EXP(x+0.00001)) -> 0.04326971726 | G3: =(F3-D3)/dxx -> 0.04324247703 | H3: =EXP(x) -> 0.0432827979 | I3: =-EXP(x) -> -0.0432827979 | J3: =EXP(x)*COS(EXP(x)) -> 0.04324226122 | K3: =J3-G3 -> -2.15806947e-07 | M3: =x0 -> 1.3 | N3: 0
C4: =C3+Sheet2!B$12 -> -3.1086 | D4: 0.04464859261 | E4: -3.10859 | F4: 0.0446490388 | G4: 0.04461912263 | H4: 0.04466344041 | I4: -0.04466344041 | J4: 0.04461889998 | K4: =J4-G4 -> -2.226498836e-07 | M4: =M3 -> 1.3 | N4: =LOOKUP(x0,C3:C203,D3:D203) -> -0.4633403906
C5: =C4+Sheet2!B$12 -> -3.0772 | D5: 0.04607180855 | E5: -3.07719 | F5: 0.04607226894 | G5: 0.04603941303 | H5: 0.0460881229 | I5: -0.0460881229 | J5: 0.04603918332 | K5: -2.297074993e-07
C6: =C5+Sheet2!B$12 -> -3.0458 | D6: 0.04754032442 | E6: -3.04579 | F6: 0.04754079947 | G6: 0.04750471397 | H6: 0.04755825016 | I6: -0.04755825016 | J6: 0.04750447698 | K6: -2.36986009e-07 | M6: =M4 -> 1.3 | N6: =N4 -> -0.4633403906
C7: =C6+Sheet2!B$12 -> -3.0144 | D7: 0.04905557552 | E7: -3.01439 | F7: 0.04905606569 | G7: 0.04901643216 | H7: 0.04907527182 | I7: -0.04907527182 | J7: 0.04901618767 | K7: -2.444913216e-07
C8: =C7+Sheet2!B$12 -> -2.983 | D8: 0.05061904198 | E8: -2.98299 | F8: 0.05061954774 | G8: 0.05057601633 | H8: 0.0506406837 | I8: -0.0506406837 | J8: 0.0505757641 | K8: -2.522312981e-07 | M8: Derivative
C9: =C8+Sheet2!B$12 -> -2.9516 | D9: 0.0522322501 | E9: -2.95159 | F9: 0.05223277195 | G9: 0.05218495825 | H9: 0.05225602938 | I9: -0.05225602938 | J9: 0.05218469804 | K9: -2.602113141e-07 | M9: =x0 -> 1.3 | N9: 0
C10: =C9+Sheet2!B$12 -> -2.9202 | D10: 0.05389677369 | E10: -2.92019 | F10: 0.05389731214 | G10: 0.05384479382 | H10: 0.05392290164 | I10: -0.05392290164 | J10: 0.05384452538 | K10: -2.684399379e-07 | M10: =M9 -> 1.3 | N10: =LOOKUP(x0,C3:C203,G3:G203) -> -3.210930524
C11: =C10+Sheet2!B$12 -> -2.8888 | D11: 0.05561423551 | E11: -2.88879 | F11: 0.05561479108 | G11: 0.05555710415 | H11: 0.0556429441 | I11: -0.0556429441 | J11: 0.05555682722 | K11: -2.769250761e-07
A12: delta x = | B12: =(xMax-xMin)/200 -> 0.0314 | C12: =C11+Sheet2!B$12 -> -2.8574 | D12: 0.05738630869 | E12: -2.85739 | F12: 0.05738688192 | G12: 0.05732351658 | H12: 0.05741785278 | I12: -0.05741785278 | J12: 0.05732323091 | K12: -2.856711274e-07 | M12: =M9 -> 1.3 | N12: =N10 -> -3.210930524
C13: =C12+Sheet2!B$12 -> -2.826 | D13: 0.05921471819 | E13: -2.82599 | F13: 0.05921530965 | G13: 0.05914570579 | H13: 0.05924937782 | I13: -0.05924937782 | J13: 0.0591454111 | K13: -2.946894613e-07
C14: =C13+Sheet2!B$12 -> -2.7946 | D14: 0.06110124232 | E14: -2.79459 | F14: 0.06110185257 | G14: 0.06102539483 | H14: 0.06113932517 | I14: -0.06113932517 | J14: 0.06102509084 | K14: -3.039850063e-07 | M14: Error
A15: dxx = | B15: =0.00001 -> 1e-05 | C15: =C14+Sheet2!B$12 -> -2.7632 | D15: 0.06304771426 | E15: -2.76319 | F15: 0.0630483439 | G15: 0.06296435617 | H15: 0.06308955841 | I15: -0.06308955841 | J15: 0.06296404261 | K15: -3.135661698e-07 | M15: =x0 -> 1.3 | N15: 0
C16: =C15+Sheet2!B$12 -> -2.7318 | D16: 0.06505602364 | E16: -2.73179 | F16: 0.06505667328 | G16: 0.06496441276 | H16: 0.06510200054 | I16: -0.06510200054 | J16: 0.06496408931 | K16: -3.234446499e-07 | M16: =M15 -> 1.3 | N16: =LOOKUP(x0,C3:C203,K3:K209) -> -1.436146981e-05
C17: =C16+Sheet2!B$12 -> -2.7004 | D17: 0.06712811813 | E17: -2.70039 | F17: 0.0671287884 | G17: 0.06702743898 | H17: 0.06717863591 | I17: -0.06717863591 | J17: 0.06702710536 | K17: -3.336221167e-07
C18: =C17+Sheet2!B$12 -> -2.669 | D18: 0.06926600508 | E18: -2.66899 | F18: 0.06926669663 | G18: 0.06915536168 | H18: 0.06932151217 | I18: -0.06932151217 | J18: 0.06915501757 | K18: -3.441113397e-07 | M18: =M15 -> 1.3 | N18: =N16 -> -1.436146981e-05
C19: =C18+Sheet2!B$12 -> -2.6376 | D19: 0.07147175318 | E19: -2.63759 | F19: 0.07147246668 | G19: 0.0713501611 | H19: 0.07153274229 | I19: -0.07153274229 | J19: 0.07134980618 | K19: -3.549213893e-07
C20: =C19+Sheet2!B$12 -> -2.6062 | D20: 0.07374749416 | E20: -2.60619 | F20: 0.07374823029 | G20: 0.0736138718 | H20: 0.07381450662 | I20: -0.07381450662 | J20: 0.07361350574 | K20: -3.660594427e-07 | M20: Envelopes
C21: =C20+Sheet2!B$12 -> -2.5748 | D21: 0.07609542446 | E21: -2.57479 | F21: 0.07609618395 | G21: 0.07594858348 | H21: 0.07616905509 | I21: -0.07616905509 | J21: 0.07594820594 | K21: -3.775359691e-07 | M21: -3.2 | N21: =EXP(M21) -> 0.04076220398
C22: =C21+Sheet2!B$12 -> -2.5434 | D22: 0.07851780707 | E22: -2.54339 | F22: 0.07851859063 | G22: 0.07835644181 | H22: 0.07859870936 | I22: -0.07859870936 | J22: 0.07835605246 | K22: -3.893561573e-07 | M22: 0 | N22: 1
C23: =C22+Sheet2!B$12 -> -2.512 | D23: 0.08101697319 | E23: -2.51199 | F23: 0.08101778158 | G23: 0.08083964919 | H23: 0.08110586519 | I23: -0.08110586519 | J23: 0.08083924766 | K23: -4.015342264e-07 | M23: =-M21 -> 3.2 | N23: =EXP(M23) -> 24.5325302
C24: =C23+Sheet2!B$12 -> -2.4806 | D24: 0.0835953241 | E24: -2.48059 | F24: 0.08359615811 | G24: 0.08340046534 | H24: 0.08369299473 | I24: -0.08369299473 | J24: 0.08340005126 | K24: -4.140754252e-07
C25: =C24+Sheet2!B$12 -> -2.4492 | D25: 0.08625533295 | E25: -2.44919 | F25: 0.08625619336 | G25: 0.08604120789 | H25: 0.08636264899 | I25: -0.08636264899 | J25: 0.0860407809 | K25: -4.269883623e-07 | M25: -3.2 | N25: =-EXP(M25) -> -0.04076220398
C26: =C25+Sheet2!B$12 -> -2.4178 | D26: 0.08899954655 | E26: -2.41779 | F26: 0.08900043419 | G26: 0.08876425285 | H26: 0.08911746037 | I26: -0.08911746037 | J26: 0.08876381256 | K26: -4.402876147e-07 | M26: 0 | N26: -1
C27: =C26+Sheet2!B$12 -> -2.3864 | D27: 0.09183058727 | E27: -2.38639 | F27: 0.09183150299 | G27: 0.09157203491 | H27: 0.09196014521 | I27: -0.09196014521 | J27: 0.09157158094 | K27: -4.539786204e-07 | M27: =-M25 -> 3.2 | N27: =-EXP(M27) -> -24.5325302
C28: =C27+Sheet2!B$12 -> -2.355 | D28: 0.09475115482 | E28: -2.35499 | F28: 0.09475209949 | G28: 0.09446704765 | H28: 0.09489350653 | I28: -0.09489350653 | J28: 0.09446657958 | K28: -4.680698912e-07
C29: =C28+Sheet2!B$12 -> -2.3236 | D29: 0.09776402817 | E29: -2.32359 | F29: 0.09776500269 | G29: 0.09745184356 | H29: 0.09792043675 | I29: -0.09792043675 | J29: 0.09745136099 | K29: -4.825719951e-07
C30: =C29+Sheet2!B$12 -> -2.2922 | D30: 0.1008720673 | E30: -2.29219 | F30: 0.1008730726 | G30: 0.1005290339 | H30: 0.1010439205 | I30: -0.1010439205 | J30: 0.1005285364 | K30: -4.974947519e-07 | M30: Points/Verticals
C31: =C30+Sheet2!B$12 -> -2.2608 | D31: 0.1040782152 | E31: -2.26079 | F31: 0.1040792522 | G31: 0.1037012883 | H31: 0.1042670378 | I31: -0.1042670378 | J31: 0.1037007755 | K31: -5.12847983e-07 | M31: =x0 -> 1.3 | N31: =EXP(x0) -> 3.669296668
C32: =C31+Sheet2!B$12 -> -2.2294 | D32: 0.1073854996 | E32: -2.22939 | F32: 0.1073865693 | G32: 0.1069713344 | H32: 0.1075929666 | I32: -0.1075929666 | J32: 0.1069708057 | K32: -5.286411204e-07 | M32: =M31 -> 1.3 | N32: =-N31 -> -3.669296668
C33: =C32+Sheet2!B$12 -> -2.198 | D33: 0.1107970345 | E33: -2.19799 | F33: 0.1107981379 | G33: 0.1103419565 | H33: 0.1110249864 | I33: -0.1110249864 | J33: 0.1103414117 | K33: -5.448796634e-07
C34: =C33+Sheet2!B$12 -> -2.1666 | D34: 0.1143160226 | E34: -2.16659 | F34: 0.1143171608 | G34: 0.1138159952 | H34: 0.1145664815 | I34: -0.1145664815 | J34: 0.1138154336 | K34: -5.615774635e-07
C35: =C34+Sheet2!B$12 -> -2.1352 | D35: 0.1179457564 | E35: -2.13519 | F35: 0.1179469304 | G35: 0.117396345 | H35: 0.1182209438 | I35: -0.1182209438 | J35: 0.1173957663 | K35: -5.787390552e-07
C36: =C35+Sheet2!B$12 -> -2.1038 | D36: 0.1216896203 | E36: -2.10379 | F36: 0.1216908311 | G36: 0.1210859535 | H36: 0.1219919768 | I36: -0.1219919768 | J36: 0.1210853572 | K36: -5.96373878e-07
C37: =C36+Sheet2!B$12 -> -2.0724 | D37: 0.1255510918 | E37: -2.07239 | F37: 0.1255523407 | G37: 0.1248878184 | H37: 0.125883299 | I37: -0.125883299 | J37: 0.1248872039 | K37: -6.144901676e-07
C38: =C37+Sheet2!B$12 -> -2.041 | D38: 0.1295337435 | E38: -2.04099 | F38: 0.1295350315 | G38: 0.1288049852 | H38: 0.1298987472 | I38: -0.1298987472 | J38: 0.1288043521 | K38: -6.330982716e-07
C39: =C38+Sheet2!B$12 -> -2.0096 | D39: 0.1336412443 | E39: -2.00959 | F39: 0.1336425727 | G39: 0.1328405438 | H39: 0.1340422809 | I39: -0.1340422809 | J39: 0.1328398916 | K39: -6.521981409e-07
C40: =C39+Sheet2!B$12 -> -1.9782 | D40: 0.1378773606 | E40: -1.97819 | F40: 0.1378787306 | G40: 0.1369976252 | H40: 0.1383179857 | I40: -0.1383179857 | J40: 0.1369969534 | K40: -6.717988625e-07
C41: =C40+Sheet2!B$12 -> -1.9468 | D41: 0.142245958 | E41: -1.94679 | F41: 0.1422473708 | G41: 0.1412793965 | H41: 0.1427300778 | I41: -0.1427300778 | J41: 0.1412787046 | K41: -6.919057349e-07
C42: =C41+Sheet2!B$12 -> -1.9154 | D42: 0.1467510018 | E42: -1.91539 | F42: 0.1467524587 | G42: 0.1456890566 | H42: 0.1472829076 | I42: -0.1472829076 | J42: 0.1456883441 | K42: -7.125275356e-07
C43: =C42+Sheet2!B$12 -> -1.884 | D43: 0.1513965583 | E43: -1.88399 | F43: 0.1513980606 | G43: 0.1502298297 | H43: 0.1519809644 | I43: -0.1519809644 | J43: 0.150229096 | K43: -7.336634023e-07
C44: =C43+Sheet2!B$12 -> -1.8526 | D44: 0.1561867953 | E44: -1.85259 | F44: 0.1561883444 | G44: 0.1549049592 | H44: 0.1568288807 | I44: -0.1568288807 | J44: 0.1549042039 | K44: -7.553207288e-07
C45: =C44+Sheet2!B$12 -> -1.8212 | D45: 0.1611259826 | E45: -1.82119 | F45: 0.1611275798 | G45: 0.1597176998 | H45: 0.1618314366 | I45: -0.1618314366 | J45: 0.1597169223 | K45: -7.774874655e-07
C46: =C45+Sheet2!B$12 -> -1.7898 | D46: 0.1662184924 | E46: -1.78979 | F46: 0.1662201392 | G46: 0.164671309 | H46: 0.166993565 | I46: -0.166993565 | J46: 0.1646705088 | K46: -8.001796888e-07
C47: =C46+Sheet2!B$12 -> -1.7584 | D47: 0.171468799 | E47: -1.75839 | F47: 0.1714704967 | G47: 0.1697690374 | H47: 0.1723203559 | I47: -0.1723203559 | J47: 0.1697682141 | K47: -8.233867406e-07
C48: =C47+Sheet2!B$12 -> -1.727 | D48: 0.1768814786 | E48: -1.72699 | F48: 0.1768832287 | G48: 0.1750141177 | H48: 0.1778170618 | I48: -0.1778170618 | J48: 0.1750132706 | K48: -8.471074568e-07
C49: =C48+Sheet2!B$12 -> -1.6956 | D49: 0.1824612082 | E49: -1.69559 | F49: 0.1824630123 | G49: 0.180409752 | H49: 0.1834891025 | I49: -0.1834891025 | J49: 0.1804088807 | K49: -8.713298317e-07
C50: =C49+Sheet2!B$12 -> -1.6642 | D50: 0.1882127651 | E50: -1.66419 | F50: 0.1882146247 | G50: 0.1859590983 | H50: 0.1893420711 | I50: -0.1893420711 | J50: 0.1859582023 | K50: -8.960574998e-07
C51: =C50+Sheet2!B$12 -> -1.6328 | D51: 0.1941410246 | E51: -1.63279 | F51: 0.1941429413 | G51: 0.1916652546 | H51: 0.1953817386 | I51: -0.1953817386 | J51: 0.1916643334 | K51: -9.212722459e-07
C52: =C51+Sheet2!B$12 -> -1.6014 | D52: 0.2002509582 | E52: -1.60139 | F52: 0.2002529335 | G52: 0.1975312416 | H52: 0.2016140606 | I52: -0.2016140606 | J52: 0.1975302947 | K52: -9.469556234e-07
C53: =C52+Sheet2!B$12 -> -1.57 | D53: 0.2065476307 | E53: -1.56999 | F53: 0.2065496663 | G53: 0.2035599829 | H53: 0.2080451824 | I53: -0.2080451824 | J53: 0.2035590098 | K53: -9.730976808e-07
C54: =C53+Sheet2!B$12 -> -1.5386 | D54: 0.2130361969 | E54: -1.53859 | F54: 0.2130382945 | G54: 0.2097542836 | H54: 0.2146814452 | I54: -0.2146814452 | J54: 0.2097532839 | K54: -9.996796493e-07
C55: =C54+Sheet2!B$12 -> -1.5072 | D55: 0.2197218977 | E55: -1.50719 | F55: 0.2197240589 | G55: 0.2161168057 | H55: 0.2215293927 | I55: -0.2215293927 | J55: 0.2161157791 | K55: -1.026666651e-06
C56: =C55+Sheet2!B$12 -> -1.4758 | D56: 0.2266100547 | E56: -1.47579 | F56: 0.2266122812 | G56: 0.2226500416 | H56: 0.2285957773 | I56: -0.2285957773 | J56: 0.2226489875 | K56: -1.054038958e-06
C57: =C56+Sheet2!B$12 -> -1.4444 | D57: 0.233706065 | E57: -1.44439 | F57: 0.2337083585 | G57: 0.2293562835 | H57: 0.2358875666 | I57: -0.2358875666 | J57: 0.2293552018 | K57: -1.081762339e-06
C58: =C57+Sheet2!B$12 -> -1.413 | D58: 0.2410153938 | E58: -1.41299 | F58: 0.2410177562 | G58: 0.236237591 | H58: 0.2434119509 | I58: -0.2434119509 | J58: 0.2362364812 | K58: -1.109785443e-06
C59: =C58+Sheet2!B$12 -> -1.3816 | D59: 0.2485435672 | E59: -1.38159 | F59: 0.2485460001 | G59: 0.2432957538 | H59: 0.2511763492 | I59: -0.2511763492 | J59: 0.2432946157 | K59: -1.138072205e-06
C60: =C59+Sheet2!B$12 -> -1.3502 | D60: 0.2562961624 | E60: -1.35019 | F60: 0.2562986677 | G60: 0.2505322511 | H60: 0.2591884178 | I60: -0.2591884178 | J60: 0.2505310845 | K60: -1.166565995e-06
C61: =C60+Sheet2!B$12 -> -1.3188 | D61: 0.2642787978 | E61: -1.31879 | F61: 0.2642813772 | G61: 0.2579482067 | H61: 0.2674560567 | I61: -0.2674560567 | J61: 0.2579470115 | K61: -1.195219959e-06
C62: =C61+Sheet2!B$12 -> -1.2874 | D62: 0.2724971207 | E62: -1.28739 | F62: 0.2724997762 | G62: 0.2655443395 | H62: 0.2759874183 | I62: -0.2759874183 | J62: 0.2655431155 | K62: -1.223937765e-06
C63: =C62+Sheet2!B$12 -> -1.256 | D63: 0.2809567942 | E63: -1.25599 | F63: 0.2809595274 | G63: 0.2733209084 | H63: 0.2847909149 | I63: -0.2847909149 | J63: 0.2733196557 | K63: -1.252666632e-06
C64: =C63+Sheet2!B$12 -> -1.2246 | D64: 0.2896634811 | E64: -1.22459 | F64: 0.2896662939 | G64: 0.2812776521 | H64: 0.2938752269 | I64: -0.2938752269 | J64: 0.2812763708 | K64: -1.281304621e-06
C65: =C64+Sheet2!B$12 -> -1.1932 | D65: 0.2986228274 | E65: -1.19319 | F65: 0.2986257216 | G65: 0.2894137226 | H65: 0.303249312 | I65: -0.303249312 | J65: 0.2894124129 | K65: -1.309758593e-06
C66: =C65+Sheet2!B$12 -> -1.1618 | D66: 0.3078404421 | E66: -1.16179 | F66: 0.3078434194 | G66: 0.2977276121 | H66: 0.3129224133 | I66: -0.3129224133 | J66: 0.2977262741 | K66: -1.337919787e-06
C67: =C66+Sheet2!B$12 -> -1.1304 | D67: =SIN(EXP(x)) -> 0.3173218754 | E67: -1.13039 | F67: 0.3173249376 | G67: =(F67-D67)/dxx -> 0.3062170722 | H67: 0.322904069 | I67: -0.322904069 | J67: 0.3062157065 | K67: -1.365647937e-06
C68: =C67+Sheet2!B$12 -> -1.099 | D68: 0.3270725942 | E68: -1.09899 | F68: 0.327075743 | G68: 0.3148790262 | H68: 0.3332041213 | I68: -0.3332041213 | J68: 0.3148776333 | K68: =J68-G68 -> -1.392834361e-06
C69: =C68+Sheet2!B$12 -> -1.0676 | D69: 0.3370979547 | E69: -1.06759 | F69: 0.3371011918 | G69: 0.3237094717 | H69: 0.3438327265 | I69: -0.3438327265 | J69: 0.3237080524 | K69: -1.419285381e-06
C70: =C69+Sheet2!B$12 -> -1.0362 | D70: 0.3474031712 | E70: -1.03619 | F70: 0.3474064982 | G70: 0.3327033747 | H70: 0.3548003649 | I70: -0.3548003649 | J70: 0.3327019298 | K70: -1.44485096e-06
C71: =C70+Sheet2!B$12 -> -1.0048 | D71: 0.3579932825 | E71: -1.00479 | F71: 0.357996701 | G71: 0.3418545528 | H71: 0.3661178511 | I71: -0.3661178511 | J71: 0.3418530835 | K71: -1.469338011e-06
C72: =C71+Sheet2!B$12 -> -0.9734 | D72: 0.3688731134 | E72: -0.97339 | F72: 0.368876625 | G72: 0.3511555484 | H72: 0.3777963444 | I72: -0.3777963444 | J72: 0.3511540559 | K72: -1.492523936e-06
C73: =C72+Sheet2!B$12 -> -0.942 | D73: 0.380047233 | E73: -0.94199 | F73: 0.3800508389 | G73: 0.3605974891 | H73: 0.3898473604 | I73: -0.3898473604 | J73: 0.360595975 | K73: -1.514181082e-06
C74: =C73+Sheet2!B$12 -> -0.9106 | D74: 0.3915199072 | E74: -0.91059 | F74: 0.3915236089 | G74: 0.3701699358 | H74: 0.4022827819 | I74: -0.4022827819 | J74: 0.3701684017 | K74: -1.534040592e-06
C75: =C74+Sheet2!B$12 -> -0.8792 | D75: 0.4032950478 | E75: -0.87919 | F75: 0.4032988465 | G75: 0.3798607165 | H75: 0.4151148708 | I75: -0.4151148708 | J75: 0.3798591647 | K75: -1.551814289e-06
C76: =C75+Sheet2!B$12 -> -0.8478 | D76: 0.4153761547 | E76: -0.84779 | F76: 0.4153800512 | G76: 0.389655746 | H76: 0.4283562799 | I76: -0.4283562799 | J76: 0.3896541788 | K76: -1.567188524e-06
C77: =C76+Sheet2!B$12 -> -0.8164 | D77: 0.4277662527 | E77: -0.81639 | F77: 0.4277702481 | G77: 0.3995388284 | H77: 0.4420200659 | I77: -0.4420200659 | J77: 0.3995372486 | K77: -1.579797336e-06
C78: =C77+Sheet2!B$12 -> -0.785 | D78: 0.4404678226 | E78: -0.78499 | F78: 0.4404719175 | G78: 0.4094914434 | H78: 0.4561197018 | I78: -0.4561197018 | J78: 0.4094898542 | K78: -1.589261469e-06
C79: =C78+Sheet2!B$12 -> -0.7536 | D79: 0.4534827238 | E79: -0.75359 | F79: 0.4534869187 | G79: 0.4194925135 | H79: 0.4706690904 | I79: -0.4706690904 | J79: 0.4194909183 | K79: -1.595154643e-06
C80: =C79+Sheet2!B$12 -> -0.7222 | D80: 0.4668121105 | E80: -0.72219 | F80: 0.4668164057 | G80: 0.4295181513 | H80: 0.4856825781 | I80: -0.4856825781 | J80: 0.4295165543 | K80: -1.597004026e-06
C81: =C80+Sheet2!B$12 -> -0.6908 | D81: 0.4804563394 | E81: -0.69079 | F81: 0.4804607349 | G81: 0.4395413869 | H81: 0.5011749687 | I81: -0.5011749687 | J81: 0.4395397926 | K81: -1.594296439e-06
C82: =C81+Sheet2!B$12 -> -0.6594 | D82: 0.494414868 | E82: -0.65939 | F82: 0.4944193634 | G82: 0.4495318713 | H82: 0.5171615383 | I82: -0.5171615383 | J82: 0.4495302848 | K82: -1.586475466e-06
C83: =C82+Sheet2!B$12 -> -0.628 | D83: 0.5086861437 | E83: -0.62799 | F83: 0.5086907382 | G83: 0.4594555577 | H83: 0.5336580505 | I83: -0.5336580505 | J83: 0.4594539848 | K83: -1.572923887e-06
C84: =C83+Sheet2!B$12 -> -0.5966 | D84: 0.5232674821 | E84: -0.59659 | F84: 0.5232721748 | G84: 0.4692743566 | H84: 0.5506807714 | I84: -0.5506807714 | J84: 0.4692728036 | K84: -1.552954439e-06
C85: =C84+Sheet2!B$12 -> -0.5652 | D85: 0.5381549348 | E85: -0.56519 | F85: 0.5381597242 | G85: 0.4789457654 | H85: 0.5682464861 | I85: -0.5682464861 | J85: 0.4789442395 | K85: -1.525852578e-06
C86: =C85+Sheet2!B$12 -> -0.5338 | D86: 0.5533431443 | E86: -0.53379 | F86: 0.5533480285 | G86: 0.4884224703 | H86: 0.5863725151 | I86: -0.5863725151 | J86: 0.4884209795 | K86: -1.490816488e-06
C87: =C86+Sheet2!B$12 -> -0.5024 | D87: 0.5688251864 | E87: -0.50239 | F87: 0.568830163 | G87: 0.4976519197 | H87: 0.6050767315 | I87: -0.6050767315 | J87: 0.4976504727 | K87: -1.446959057e-06
C88: =C87+Sheet2!B$12 -> -0.471 | D88: 0.5845923987 | E88: -0.47099 | F88: 0.5845974644 | G88: 0.5065758681 | H88: 0.6243775784 | I88: -0.6243775784 | J88: 0.5065744747 | K88: -1.393361065e-06
C89: =C88+Sheet2!B$12 -> -0.4396 | D89: 0.600634194 | E89: -0.43959 | F89: 0.6006393453 | G89: 0.5151298899 | H89: 0.6442940872 | I89: -0.6442940872 | J89: 0.5151285609 | K89: -1.328973411e-06
C90: =C89+Sheet2!B$12 -> -0.4082 | D90: 0.6169378586 | E90: -0.40819 | F90: 0.6169430911 | G90: 0.5232428627 | H90: 0.6648458963 | I90: -0.6648458963 | J90: 0.5232416101 | K90: -1.252697402e-06
C91: =C90+Sheet2!B$12 -> -0.3768 | D91: 0.6334883334 | E91: -0.37679 | F91: 0.6334936418 | G91: 0.5308364195 | H91: 0.6860532708 | I91: -0.6860532708 | J91: 0.5308352562 | K91: -1.163353369e-06
C92: =C91+Sheet2!B$12 -> -0.3454 | D92: 0.6502679772 | E92: -0.34539 | F92: 0.6502733554 | G92: 0.5378243707 | H92: 0.707937122 | I92: -0.707937122 | J92: 0.5378233111 | K92: -1.059623949e-06
C93: =C92+Sheet2!B$12 -> -0.314 | D93: 0.6672563117 | E93: -0.31399 | F93: 0.6672617528 | G93: 0.5441120967 | H93: 0.7305190282 | I93: -0.7305190282 | J93: 0.5441111566 | K93: -9.401020957e-07
C94: =C93+Sheet2!B$12 -> -0.2826 | D94: 0.6844297471 | E94: -0.28259 | F94: 0.6844352431 | G94: 0.5495959129 | H94: 0.7538212561 | I94: -0.7538212561 | J94: 0.5495951095 | K94: -8.033325184e-07
C95: =C94+Sheet2!B$12 -> -0.2512 | D95: 0.7017612871 | E95: -0.25119 | F95: 0.7017668287 | G95: 0.5541624081 | H95: 0.7778667826 | I95: -0.7778667826 | J95: 0.5541617604 | K95: -6.476970503e-07
C96: =C95+Sheet2!B$12 -> -0.2198 | D96: 0.7192202125 | E96: -0.21979 | F96: 0.7192257894 | G96: 0.5576877625 | H96: 0.8026793178 | I96: -0.8026793178 | J96: 0.557687291 | K96: -4.714784804e-07
C97: =C96+Sheet2!B$12 -> -0.1884 | D97: 0.7367717438 | E97: -0.18839 | F97: 0.7367773442 | G97: 0.560037047 | H97: 0.8282833276 | I97: -0.8282833276 | J97: 0.5600367742 | K97: -2.728493983e-07
C98: =C97+Sheet2!B$12 -> -0.157 | D98: 0.754376681 | E98: -0.15699 | F98: 0.7543822916 | G98: 0.5610635118 | H98: 0.8547040588 | I98: -0.8547040588 | J98: 0.561063462 | K98: -4.986110191e-08
C99: =C98+Sheet2!B$12 -> -0.1256 | D99: 0.7719910214 | E99: -0.12559 | F99: 0.7719966275 | G99: 0.5606078717 | H99: 0.8819675633 | I99: -0.8819675633 | J99: 0.5606080712 | K99: 1.995158772e-07
C100: =C99+Sheet2!B$12 -> -0.0942 | D100: 0.7895655545 | E100: -0.09419 | F100: 0.7895711395 | G100: 0.5584975977 | H100: 0.9101007239 | I100: -0.9101007239 | J100: 0.5584980751 | K100: 4.774637694e-07
C101: =C100+Sheet2!B$12 -> -0.0628 | D101: 0.8070454358 | E101: -0.06279 | F101: 0.8070509812 | G101: 0.5545462273 | H101: 0.9391312812 | I101: -0.9391312812 | J101: 0.5545470135 | K101: 7.862301464e-07
C102: =C101+Sheet2!B$12 -> -0.0314 | D102: 0.8243697382 | E102: -0.03139 | F102: 0.8243752237 | G102: 0.5485527092 | H102: 0.9690878604 | I102: -0.9690878604 | J102: 0.5485538374 | K102: 1.128223828e-06
C103: =C102+Sheet2!B$12 -> 5.981326545e-15 | D103: 0.8414709848 | E103: 1.000000001e-05 | F103: 0.8414763878 | G103: 0.5403008 | H103: 1 | I103: -1 | J103: 0.5403023059 | K103: 1.505889894e-06
C104: =C103+Sheet2!B$12 -> 0.0314 | D104: 0.8582746633 | E104: 0.03141 | F104: 0.8582799589 | G104: 0.5295585352 | H104: 1.031898181 | I104: -1.031898181 | J104: 0.5295604569 | K104: 1.921771145e-06
C105: =C104+Sheet2!B$12 -> 0.0628 | D105: 0.874698725 | E105: 0.06281 | F105: 0.8747038858 | G105: 0.5160778017 | H105: 1.064813855 | I105: -1.064813855 | J105: 0.5160801802 | K105: 2.378450287e-06
C106: =C105+Sheet2!B$12 -> 0.0942 | D106: 0.8906530732 | E106: 0.09421 | F106: 0.8906580691 | G106: 0.4995940429 | H106: 1.09877948 | I106: -1.09877948 | J106: 0.4995969214 | K106: 2.878576735e-06
C107: =C106+Sheet2!B$12 -> 0.1256 | D107: 0.9060390438 | E107: 0.12561 | F107: 0.9060438421 | G107: 0.4798261328 | H107: 1.133828546 | I107: -1.133828546 | J107: 0.4798295575 | K107: 3.424788019e-06
C108: =C107+Sheet2!B$12 -> 0.157 | D108: 0.9207488865 | E108: 0.15701 | F108: 0.9207534512 | G108: 0.4564764647 | H108: 1.169995614 | I108: -1.169995614 | J108: 0.4564804844 | K108: 4.019684936e-06
C109: =C108+Sheet2!B$12 -> 0.1884 | D109: 0.9346652514 | E109: 0.18841 | F109: 0.9346695437 | G109: 0.4292313038 | H109: 1.207316345 | I109: -1.207316345 | J109: 0.4292359696 | K109: 4.665800513e-06
C110: =C109+Sheet2!B$12 -> 0.2198 | D110: 0.9476606927 | E110: 0.21981 | F110: 0.9476646703 | G110: 0.3977614628 | H110: 1.24582754 | I110: -1.24582754 | J110: 0.3977668282 | K110: 5.365493581e-06
C111: =C110+Sheet2!B$12 -> 0.2512 | D111: 0.9595971989 | E111: 0.25121 | F111: 0.9596008161 | G111: 0.3617233695 | H111: 1.285567172 | I111: -1.285567172 | J111: 0.3617294905 | K111: 6.120985201e-06
C112: =C111+Sheet2!B$12 -> 0.2826 | D112: 0.9703257641 | E112: 0.28261 | F112: 0.9703289717 | G112: 0.3207606039 | H112: 1.326574426 | I112: -1.326574426 | J112: 0.3207675381 | K112: 6.934140697e-06
C113: =C112+Sheet2!B$12 -> 0.314 | D113: 0.9796860157 | E113: 0.31401 | F113: 0.9796887608 | G113: 0.2745059929 | H113: 1.368889737 | I113: -1.368889737 | J113: 0.2745137994 | K113: 7.806494284e-06
C114: =C113+Sheet2!B$12 -> 0.3454 | D114: 0.9875059182 | E114: 0.34541 | F114: 0.987508144 | G114: 0.2225843632 | H114: 1.412554829 | I114: -1.412554829 | J114: 0.2225931023 | K114: 8.739049698e-06
C115: =C114+Sheet2!B$12 -> 0.3768 | D115: 0.9936015748 | E115: 0.37681 | F115: 0.993603221 | G115: 0.1646160658 | H115: 1.457612758 | I115: -1.457612758 | J115: 0.1646257979 | K115: 9.732175504e-06
C116: =C115+Sheet2!B$12 -> 0.4082 | D116: 0.9977771544 | E116: 0.40821 | F116: 0.9977781566 | G116: 0.1002213954 | H116: 1.504107953 | I116: -1.504107953 | J116: 0.1002321809 | K116: 1.078551155e-05
C117: =C116+Sheet2!B$12 -> 0.4396 | D117: 0.9998249718 | E117: 0.43961 | F117: 0.9998252621 | G117: 0.02902604591 | H117: 1.55208626 | I117: -1.55208626 | J117: 0.02903794359 | K117: 1.189768313e-05
C118: =C117+Sheet2!B$12 -> 0.471 | D118: 0.9995257587 | E118: 0.47101 | F118: 0.9995252654 | G118: -0.04933224919 | H118: 1.601594988 | I118: -1.601594988 | J118: -0.04931918302 | K118: 1.306617049e-05
C119: =C118+Sheet2!B$12 -> 0.5024 | D119: 0.9966491632 | E119: 0.50241 | F119: 0.9966478112 | G119: -0.1351957268 | H119: 1.652682954 | I119: -1.652682954 | J119: -0.1351814397 | K119: 1.428708406e-05
C120: =C119+Sheet2!B$12 -> 0.5338 | D120: 0.9909545236 | E120: 0.53381 | F120: 0.9909522348 | G120: -0.22887708 | H120: 1.705400533 | I120: -1.705400533 | J120: -0.2288615251 | K120: 1.555485882e-05
C121: =C120+Sheet2!B$12 -> 0.5652 | D121: 0.9821919678 | E121: 0.56521 | F121: 0.9821886613 | G121: -0.3306482369 | H121: 1.759799707 | I121: -1.759799707 | J121: -0.3306313748 | K121: 1.686202315e-05
C122: =C121+Sheet2!B$12 -> 0.5966 | D122: 0.970103894 | E122: 0.59661 | F122: 0.9700994868 | G122: -0.4407272447 | H122: 1.815934116 | I122: -1.815934116 | J122: -0.4407090458 | K122: 1.819884685e-05
C123: =C122+Sheet2!B$12 -> 0.628 | D123: 0.9544268951 | E123: 0.62801 | F123: 0.9544213025 | G123: -0.5592630706 | H123: 1.873859111 | I123: -1.873859111 | J123: -0.5592435176 | K123: 1.955298086e-05
C124: =C123+Sheet2!B$12 -> 0.6594 | D124: 0.9348941961 | E124: 0.65941 | F124: 0.9348873329 | G124: -0.6863181381 | H124: 1.933631807 | I124: -1.933631807 | J124: -0.686297229 | K124: 2.090915823e-05
C125: =C124+Sheet2!B$12 -> 0.6908 | D125: 0.9112386767 | E125: 0.69081 | F125: 0.9112304583 | G125: -0.8218484342 | H125: 1.995311144 | I125: -1.995311144 | J125: -0.8218261855 | K125: 2.224868478e-05
C126: =C125+Sheet2!B$12 -> 0.7222 | D126: 0.88319656 | E126: 0.72221 | F126: 0.8831869032 | G126: -0.9656810487 | H126: 2.058957939 | I126: -2.058957939 | J126: -0.9656574996 | K126: 2.354913691e-05
C127: =C126+Sheet2!B$12 -> 0.7536 | D127: 0.850511846 | E127: 0.75361 | F127: 0.8505006711 | G127: -1.117489054 | H127: 2.124634951 | I127: -2.124634951 | J127: -1.11746427 | K127: 2.478381108e-05
C128: =C127+Sheet2!B$12 -> 0.785 | D128: 0.8129415781 | E128: 0.78501 | F128: 0.8129288105 | G128: -1.27676369 | H128: 2.192406941 | I128: -2.192406941 | J128: -1.276737769 | K128: 2.592143006e-05
C129: =C128+Sheet2!B$12 -> 0.8164 | D129: 0.7702620234 | E129: 0.81641 | F129: 0.7702475956 | G129: -1.442783916 | H129: 2.262340733 | I129: -2.262340733 | J129: -1.44275699 | K129: 2.69255894e-05
C130: =C129+Sheet2!B$12 -> 0.8478 | D130: 0.7222758491 | E130: 0.84781 | F130: 0.7222597032 | G130: -1.614583489 | H130: 2.334505287 | I130: -2.334505287 | J130: -1.614555734 | K130: 2.775456288e-05
C131: =C130+Sheet2!B$12 -> 0.8792 | D131: =SIN(EXP(x)) -> 0.6688203667 | E131: 0.87921 | F131: 0.6688024576 | G131: =(F131-D131)/dxx -> -1.7909159 | H131: 2.408971758 | I131: -2.408971758 | J131: -1.790887539 | K131: 2.836080236e-05
C132: =C131+Sheet2!B$12 -> 0.9106 | D132: 0.6097769057 | E132: 0.91061 | F132: 0.6097572035 | G132: -1.970217671 | H132: 2.485813574 | I132: -2.485813574 | J132: -1.970188981 | K132: =J132-G132 -> 2.869082811e-05
C133: =C132+Sheet2!B$12 -> 0.942 | D133: 0.5450813545 | E133: 0.94201 | F133: 0.5450598488 | G133: -2.150570773 | H133: 2.565106505 | I133: -2.565106505 | J133: -2.150542088 | K133: 2.868526868e-05
C134: =C133+Sheet2!B$12 -> 0.9734 | D134: 0.4747358832 | E134: 0.97341 | F134: 0.4747125866 | G134: -2.329665192 | H134: 2.646928735 | I134: -2.646928735 | J134: -2.329636913 | K134: 2.827863764e-05
C135: =C134+Sheet2!B$12 -> 1.0048 | D135: 0.3988218211 | E135: 1.00481 | F135: 0.3987967735 | G135: -2.504763061 | H135: 2.731360946 | I135: -2.731360946 | J135: -2.50473566 | K135: 2.740031049e-05
C136: =C135+Sheet2!B$12 -> 1.0362 | D136: 0.3175136129 | E136: 1.03621 | F136: 0.3174868863 | G136: -2.672666162 | H136: 2.818486391 | I136: -2.818486391 | J136: -2.672640187 | K136: 2.597448444e-05
C137: =C136+Sheet2!B$12 -> 1.0676 | D137: 0.2310937129 | E137: 1.06761 | F137: 0.231065416 | G137: -2.829689108 | H137: 2.908390979 | I137: -2.908390979 | J137: -2.829665186 | K137: 2.392189108e-05
C138: =C137+Sheet2!B$12 -> 1.099 | D138: 0.1399681956 | E138: 1.09901 | F138: 0.1399384792 | G138: -2.971641068 | H138: 3.00116336 | I138: -3.00116336 | J138: -2.971619907 | K138: 2.116127409e-05
C139: =C138+Sheet2!B$12 -> 1.1304 | D139: 0.04468276125 | E139: 1.13041 | F139: 0.04465182305 | G139: -3.093819526 | H139: 3.09689501 | I139: -3.09689501 | J139: -3.093801914 | K139: 1.761134078e-05
C140: =C139+Sheet2!B$12 -> 1.1618 | D140: -0.05406130504 | E140: 1.16181 | F140: -0.05409321524 | G140: -3.191020217 | H140: 3.195680327 | I140: -3.195680327 | J140: -3.191007023 | K140: 1.319405387e-05
C141: =C140+Sheet2!B$12 -> 1.1932 | D141: -0.1553918027 | E141: 1.19321 | F141: -0.1554243784 | G141: -3.257568133 | H141: 3.297616715 | I141: -3.297616715 | J141: -3.257560295 | K141: 7.838365797e-06
C142: =C141+Sheet2!B$12 -> 1.2246 | D142: -0.2582516613 | E142: 1.22461 | F142: -0.2582845351 | G142: -3.287375136 | H142: 3.402804689 | I142: -3.402804689 | J142: -3.287373651 | K142: 1.484588957e-06
C143: =C142+Sheet2!B$12 -> 1.256 | D143: -0.3613872933 | E143: 1.25601 | F143: -0.3614200337 | G143: -3.274030415 | H143: 3.511347967 | I143: -3.511347967 | J143: -3.274036324 | K143: -5.90938498e-06
C144: =C143+Sheet2!B$12 -> 1.2874 | D144: -0.4633403906 | E144: 1.28741 | F144: -0.4633724999 | G144: -3.210930524 | H144: 3.623353579 | I144: -3.623353579 | J144: -3.210944885 | K144: -1.436146981e-05
C145: =C144+Sheet2!B$12 -> 1.3188 | D145: -0.562444517 | E145: 1.31881 | F145: -0.5624754315 | G145: -3.091456063 | H145: 3.738931966 | I145: -3.738931966 | J145: -3.091479921 | K145: -2.385741018e-05
C146: =C145+Sheet2!B$12 -> 1.3502 | D146: -0.6568280736 | E146: 1.35021 | F146: -0.6568571657 | G146: -2.909202027 | H146: 3.858197093 | I146: -3.858197093 | J146: -2.909236369 | K146: -3.434165042e-05
C147: =C146+Sheet2!B$12 -> 1.3816 | D147: -0.7444254255 | E147: 1.38161 | F147: -0.7444520082 | G147: -2.658268323 | H147: 3.981266561 | I147: -3.981266561 | J147: -2.65831403 | K147: -4.570717222e-05
C148: =C147+Sheet2!B$12 -> 1.413 | D148: -0.8229981658 | E148: 1.41301 | F148: -0.823021502 | G148: -2.333615756 | H148: 4.108261721 | I148: -4.108261721 | J148: -2.333673541 | K148: -5.778497745e-05
C149: =C148+Sheet2!B$12 -> 1.4444 | D149: -0.8901686316 | E149: 1.44441 | F149: -0.8901879465 | G149: -1.931490643 | H149: 4.239307795 | I149: -4.239307795 | J149: -1.931560976 | K149: -7.033287581e-05
C150: =C149+Sheet2!B$12 -> 1.4758 | D150: -0.9434678327 | E150: 1.47581 | F150: -0.9434823319 | G150: -1.449917944 | H150: 4.374534001 | I150: -4.374534001 | J150: -1.450000969 | K150: -8.302492775e-05
C151: =C150+Sheet2!B$12 -> 1.5072 | D151: -0.9803998843 | E151: 1.50721 | F151: -0.9804087769 | G151: -0.8892580343 | H151: 4.514073676 | I151: -4.514073676 | J151: -0.8893534762 | K151: -9.544189194e-05
C152: =C151+Sheet2!B$12 -> 1.5386 | D152: -0.9985247836 | E152: 1.53861 | F152: -0.9985273117 | G152: -0.2528158207 | H152: 4.658064414 | I152: -4.658064414 | J152: -0.2529228851 | K152: -0.0001070643408
C153: =C152+Sheet2!B$12 -> 1.57 | D153: -0.9955608885 | E153: 1.57001 | F153: -0.9955563633 | G153: 0.452517538 | H153: 4.806648194 | I153: -4.806648194 | J153: 0.4524002685 | K153: -0.0001172695181
C154: =C153+Sheet2!B$12 -> 1.6014 | D154: -0.9695076777 | E154: 1.60141 | F154: -0.9694955215 | G154: 1.215620604 | H154: 4.959971526 | I154: -4.959971526 | J154: 1.21549527 | K154: -0.0001253340422
C155: =C154+Sheet2!B$12 -> 1.6328 | D155: -0.918788225 | E155: 1.63281 | F155: -0.9187680196 | G155: 2.020538325 | H155: 5.118185594 | I155: -5.118185594 | J155: 2.02040788 | K155: -0.0001304444709
C156: =C155+Sheet2!B$12 -> 1.6642 | D156: -0.8424092465 | E156: 1.66421 | F156: -0.8423807868 | G156: 2.845977064 | H156: 5.281446402 | I156: -5.281446402 | J156: 2.845845345 | K156: -0.0001317185965
C157: =C156+Sheet2!B$12 -> 1.6956 | D157: -0.740134517 | E157: 1.69561 | F157: -0.7400978672 | G157: 3.664971735 | H157: 5.449914933 | I157: -5.449914933 | J157: 3.664843496 | K157: -0.0001282394258
C158: =C157+Sheet2!B$12 -> 1.727 | D158: -0.6126648784 | E158: 1.72701 | F158: -0.6126204303 | G158: 4.444815218 | H158: 5.623757304 | I158: -5.623757304 | J158: 4.444696113 | K158: -0.0001191048971
C159: =C158+Sheet2!B$12 -> 1.7584 | D159: -0.4618149891 | E159: 1.75841 | F159: -0.4617635155 | G159: 5.147355381 | H159: 5.803144931 | I159: -5.803144931 | J159: 5.147251885 | K159: -0.0001034957883
C160: =C159+Sheet2!B$12 -> 1.7898 | D160: -0.2906734584 | E160: 1.78981 | F160: -0.2906161606 | G160: 5.729776477 | H160: 5.988254696 | I160: -5.988254696 | J160: 5.729695715 | K160: -8.076225632e-05
C161: =C160+Sheet2!B$12 -> 1.8212 | D161: -0.1037292582 | E161: 1.82121 | F161: -0.1036677983 | G161: 6.145986024 | H161: 6.179269126 | I161: -6.179269126 | J161: 6.145935494 | K161: -5.052971938e-05
C162: =C161+Sheet2!B$12 -> 1.8526 | D162: 0.09305643126 | E162: 1.85261 | F162: 0.09311991848 | G162: 6.348721247 | H162: 6.376376568 | I162: -6.376376568 | J162: 6.348708425 | K162: -1.282167638e-05
C163: =C162+Sheet2!B$12 -> 1.884 | D163: 0.2922570413 | E163: 1.88401 | F163: 0.292319966 | G163: 6.292465469 | H163: 6.57977138 | I163: -6.57977138 | J163: 6.292497275 | K163: 3.180652282e-05
C164: =C163+Sheet2!B$12 -> 1.9154 | D164: 0.4850923816 | E164: 1.91541 | F164: 0.4851517538 | G164: 5.937218566 | H164: 6.789654116 | I164: -6.789654116 | J164: 5.937300697 | K164: 8.213131974e-05
C165: =C164+Sheet2!B$12 -> 1.9468 | D165: 0.6616719259 | E165: 1.94681 | F165: 0.6617244568 | G165: 5.253090731 | H165: 7.006231729 | I165: -7.006231729 | J165: 5.253226869 | K165: 0.0001361380542
C166: =C165+Sheet2!B$12 -> 1.9782 | D166: 0.8113936133 | E166: 1.97821 | F166: 0.8114358691 | G166: 4.225580064 | H166: 7.229717774 | I166: -7.229717774 | J166: 4.225770994 | K166: 0.0001909297954
C167: =C166+Sheet2!B$12 -> 2.0096 | D167: 0.9235155914 | E167: 2.00961 | F167: 0.9235442039 | G167: 2.861249085 | H167: 7.460332617 | I167: -7.460332617 | J167: 2.861491781 | K167: 0.0002426961938
C168: =C167+Sheet2!B$12 -> 2.041 | D168: 0.9879066372 | E168: 2.04101 | F168: 0.9879185705 | G168: 1.193334556 | H168: 7.698303655 | I168: -7.698303655 | J168: 1.193621328 | K168: 0.0002867718774
C169: =C168+Sheet2!B$12 -> 2.0724 | D169: 0.9959631611 | E169: 2.07241 | F169: 0.9959560273 | G169: -0.7133823823 | H169: 7.943865535 | I169: -7.943865535 | J169: -0.7130645633 | K169: 0.0003178189974
C170: =C169+Sheet2!B$12 -> 2.1038 | D170: 0.9416561763 | E170: 2.10381 | F170: 0.941628583 | G170: -2.759334227 | H170: 8.197260393 | I170: -8.197260393 | J170: -2.759004058 | K170: 0.0003301685147
C171: =C170+Sheet2!B$12 -> 2.1352 | D171: 0.8226405945 | E171: 2.13521 | F171: 0.8225924981 | G171: -4.809633189 | H171: 8.458738085 | I171: -8.458738085 | J171: -4.809314845 | K171: 0.0003183445232
C172: =C171+Sheet2!B$12 -> 2.1666 | D172: 0.6413231547 | E172: 2.16661 | F172: 0.6412561802 | G172: -6.697445011 | H172: 8.728556441 | I172: -8.728556441 | J172: -6.697167227 | K172: 0.0002777845218
C173: =C172+Sheet2!B$12 -> 2.198 | D173: 0.4057474279 | E173: 2.19801 | F173: 0.4056651034 | G173: -8.232453921 | H173: 9.00698151 | I173: -9.00698151 | J173: -8.232248186 | K173: 0.0002057345635
C174: =C173+Sheet2!B$12 -> 2.2294 | D174: 0.1301201186 | E174: 2.22941 | F174: 0.1300279649 | G174: -9.21537227 | H174: 9.294287833 | I174: -9.294287833 | J174: -9.215270005 | K174: 0.0001022652796
C175: =C174+Sheet2!B$12 -> 2.2608 | D175: -0.1652196764 | E175: 2.26081 | F175: -0.1653142657 | G175: -9.458922201 | H175: 9.590758706 | I175: -9.590758706 | J175: -9.458950908 | K175: -2.870691955e-05
C176: =C175+Sheet2!B$12 -> 2.2922 | D176: -0.454587016 | E176: 2.29221 | F176: -0.4546751642 | G176: -8.814823149 | H176: 9.896686459 | I176: -9.896686459 | J176: -8.815001712 | K176: -0.0001785627039
C177: =C176+Sheet2!B$12 -> 2.3236 | D177: -0.7086583238 | E177: 2.32361 | F177: -0.7087303741 | G177: -7.205024721 | H177: 10.21237275 | I177: -10.21237275 | J177: -7.205358249 | K177: -0.0003335281864
C178: =C177+Sheet2!B$12 -> 2.355 | D178: -0.8971836709 | E178: 2.35501 | F178: -0.8972302086 | G178: -4.653770087 | H178: 10.53812886 | I178: -10.53812886 | J178: -4.654245 | K178: -0.0004749131548
C179: =C178+Sheet2!B$12 -> 2.3864 | D179: -0.9926523783 | E179: 2.38641 | F179: -0.9926655304 | G179: -1.315218562 | H179: 10.874276 | I179: -10.874276 | J179: -1.315798897 | K179: -0.0005803345556
C180: =C179+Sheet2!B$12 -> 2.4178 | D180: -0.9746664802 | E180: 2.41781 | F180: -0.9746413764 | G180: 2.510384143 | H180: 11.22114562 | I180: -11.22114562 | J180: 2.509757972 | K180: -0.0006261710436
C181: =C180+Sheet2!B$12 -> 2.4492 | D181: -0.8345364377 | E181: 2.44921 | F181: -0.8344726365 | G181: 6.380117187 | H181: 11.57907975 | I181: -11.57907975 | J181: 6.379525846 | K181: -0.0005913418422
C182: =C181+Sheet2!B$12 -> 2.4806 | D182: -0.5793567589 | E182: 2.48061 | F182: -0.5792593657 | G182: 9.739318832 | H182: 11.94843133 | I182: -11.94843133 | J182: 9.738856597 | K182: -0.0004622347995
C183: =C182+Sheet2!B$12 -> 2.512 | D183: -0.2345990313 | E183: 2.51201 | F183: -0.2344791742 | G183: 11.98571205 | H183: 12.32956455 | I183: -12.32956455 | J183: 11.98547384 | K183: -0.0002382156555
C184: =C183+Sheet2!B$12 -> 2.5434 | D184: 0.1558467398 | E184: 2.54341 | F184: 0.1559724132 | G184: 12.56733448 | H184: 12.72285522 | I184: -12.72285522 | J184: 12.56739781 | K184: 6.333330195e-05
C185: =C184+Sheet2!B$12 -> 2.5748 | D185: 0.5331508581 | E185: 2.57481 | F185: 0.5332619255 | G185: 11.10673382 | H185: 13.12869116 | I185: -13.12869116 | J185: 11.10713779 | K185: 0.0004039766251
C186: =C185+Sheet2!B$12 -> 2.6062 | D186: 0.8311106522 | E186: 2.60621 | F186: 0.8311859834 | G186: 7.53312033 | H186: 13.54747252 | I186: -13.54747252 | J186: 7.533845377 | K186: 0.00072504667
C187: =C186+Sheet2!B$12 -> 2.6376 | D187: 0.9876139128 | E187: 2.63761 | F187: 0.9876358378 | G187: 2.192498263 | H187: 13.97961224 | I187: -13.97961224 | J187: 2.193452357 | K187: 0.0009540942233
C188: =C187+Sheet2!B$12 -> 2.669 | D188: 0.9587088466 | E188: 2.66901 | F188: 0.9586678118 | G188: -4.103488099 | H188: 14.42553644 | I188: -14.42553644 | J188: -4.102470073 | K188: 0.001018026049
C189: =C188+Sheet2!B$12 -> 2.7004 | D189: 0.7326983442 | E189: 2.70041 | F189: 0.7325970305 | G189: -10.13136806 | H189: 14.88568481 | I189: -14.88568481 | J189: -10.13050566 | K189: 0.0008623931554
C190: =C189+Sheet2!B$12 -> 2.7318 | D190: 0.3405033607 | E190: 2.73181 | F190: 0.3403589298 | G190: -14.44309147 | H190: 15.36051107 | I190: -15.36051107 | J190: -14.4426176 | K190: 0.0004738614984
C191: =C190+Sheet2!B$12 -> 2.7632 | D191: -0.1420381709 | E191: 2.76321 | F191: -0.1421950677 | G191: -15.6896782 | H191: 15.85048343 | I191: -15.85048343 | J191: -15.68977825 | K191: -0.0001000450792
C192: =C191+Sheet2!B$12 -> 2.7946 | D192: -0.6036900888 | E192: 2.79461 | F192: -0.6038204752 | G192: -13.03864083 | H192: 16.35608501 | I192: -16.35608501 | J192: -13.0393832 | K192: -0.00074236931
C193: =C192+Sheet2!B$12 -> 2.826 | D193: -0.9206924925 | E193: 2.82601 | F193: -0.920758352 | G193: -6.585943175 | H193: 16.87781436 | I193: -16.87781436 | J193: -6.587221629 | K193: -0.001278453361
C194: =C193+Sheet2!B$12 -> 2.8574 | D194: -0.9905718528 | E194: 2.85741 | F194: -0.9905479785 | G194: 2.387430304 | H194: 17.41618594 | I194: -17.41618594 | J194: 2.385916053 | K194: -0.00151425137
C195: =C194+Sheet2!B$12 -> 2.8888 | D195: =SIN(EXP(x)) -> -0.7693514714 | E195: 2.88881 | F195: -0.7692366503 | G195: =(F195-D195)/dxx -> 11.4821037 | H195: 17.97173058 | I195: -17.97173058 | J195: 11.48080391 | K195: -0.001299792421
C196: =C195+Sheet2!B$12 -> 2.9202 | D196: -0.2998732946 | E196: 2.92021 | F196: -0.2996963732 | G196: 17.69214157 | H196: 18.54499609 | I196: -18.54499609 | J196: 17.69153755 | K196: =J196-G196 -> -0.0006040190229
C197: =C196+Sheet2!B$12 -> 2.9516 | D197: 0.2830683477 | E197: 2.95161 | F197: 0.283251882 | G197: 18.35343128 | H197: 19.13654772 | I197: -19.13654772 | J197: 18.35385794 | K197: 0.0004266559778
C198: =C197+Sheet2!B$12 -> 2.983 | D198: 0.781716096 | E198: 2.98301 | F198: 0.7818392303 | G198: 12.31342766 | H198: 19.74696878 | I198: -19.74696878 | J198: 12.3148903 | K198: 0.001462643178
C199: =C198+Sheet2!B$12 -> 3.0144 | D199: 0.9990544115 | E199: 3.01441 | F199: 0.9990632501 | G199: 0.8838628999 | H199: 20.37686116 | I199: -20.37686116 | J199: 0.8859326163 | K199: 0.002069716398
C200: =C199+Sheet2!B$12 -> 3.0458 | D200: 0.8216516179 | E200: 3.04581 | F200: 0.8215317482 | G200: -11.9869685 | H200: 21.02684595 | I200: -21.02684595 | J200: -11.98509227 | K200: 0.001876232604
... 205 more rows

Sheet Defining Function
A1: Defining a Function in Excel
A3: Computers have very specific rules you must follow when defining a function. If you don't, the program will either not work at all or will work incorrectly.
A5: 1. The Variable used should be the one named in the instruction, usually x, though sometimes y, t, Q (for an angle theta),
A6: or even x and y (for a function of two variables).
A8: 2. Order of Operations: There five arithmetic operations, addition (+), subtraction (-), multiplication (*), division (/), and exponentiation or power (^). When computers see any of these operation symbols, they perform the indicated steps in a very particular order. First, the power is done. Second, products and quotients of adjacent terms is done. Third, and last, sums and differences of adjacent terms are done. So, in 10*x^3 + 5*x – 7, say with x = 2, the first pass only calculates 2^3 and ignores the multiplications and the sums and differences to calculate 2^3 = 8. The second pass looks at 10*8 + 5*2 – 7 and only does the multiplications, so it produces 80 + 10 - 7. The third pass looks at the +’s and –‘s to produce 80 + 10 – 7 = 83.
A10: 3. Parentheses If you need an operation involving more than two adjacent terms, as in Ö4^3 + 6^2, the computer would take the square root of 4 to produce 2^3 + 6^2; it would then cube the 2 and square the 6 to produce 8 + 36; and finally it would add the 8 and the 36 to get 44. If you actually wanted the square root of the entire expression, you would need to use parentheses, as in Ö(4^3 + 6^2) to tell the computer to do all the operations inside the parentheses before taking the square root. Therefore, it would calculate (4^3 + 6^2) = 64 + 36 = 100 and then take the square root of Ö100 = 10.
A12: 4. Built-In Functions Computer programs have built-in functions for most common algebraic functions. In Excel, the square root function is denoted by SQRT(…), so SQRT(100) = 10. Alternatively, you could enter it as 100^.5 or 100^(1/2); notice that parentheses are needed to have the ½ done first. The common trig functions are SIN (…), COS (…), and TAN (…), where the arguments are automatically interpreted as being in radians, not degrees. The logarithm to the base 10 is represented by LOG (…) and the logarithm with the base e, known as the natural logarithm, is LN (…). The corresponding exponential function with base e is EXP (x). If x is the variable, then each of these would be SQRT (x), SIN (x), COS (x), TAN (x), LOG (x) (for log with base 10 ), LN (x) (for log with base e ), and EXP (x).

Sheet Sheet3
